Cogmind - Beta 15 @@@ ROGUE MODE // 2025.07.23 @ 19:29:47 Player: Dew Result: Destroyed by Y-45 Defender with Beam Rifle Performance ------------- Evolutions (1) 500 Regions Visited (2) 400 Robots Destroyed (23) 115 Value Destroyed (550) 550 Prototype IDs (0) 0 Alien Tech Used (0) 0 Bonus (15) 15 TOTAL SCORE: 1580 Bonus ------- High Alert Combat Kills 15 Cogmind --------- Core Integrity 0/400 Matter 195/300 Energy 99/100 System Corruption 0% Temperature Cool (9) Movement Core (50) Location -9/Materials Parts ------- > --- POWER (1) -------- (None) > --- PROPULSION (3) --- (None) > --- UTILITY (3) ------ Improved Targeting Computer > --- WEAPON (2) ------- (None) > --- INVENTORY (5) ---- Weight Redist. System Shield Generator Particle Cannon Particle Cannon Assault Rifle Peak State ------------ > --- POWER ------------ Light Nuclear Core > --- PROPULSION ------- Improved Hover Unit Improved Hover Unit Improved Hover Unit > --- UTILITY ---------- Improved Heat Sink Small Storage Unit Seismic Detector > --- WEAPON ----------- Particle Cannon Mini Grenade Launcher > --- INVENTORY -------- Ion Engine Improved Hover Unit Particle Cannon Assault Rifle Mini Grenade Launcher Mini Grenade Launcher [Rating: 19] Favorites ----------- Power Light Nuclear Core Engine Ion Engine Power Core Light Nuclear Core Propulsion Improved Hover Unit Leg Aluminum Leg Hover Unit Improved Hover Unit Utility Small Storage Unit Device Seismic Detector Storage Small Storage Unit Processor Improved Targeting Computer Weapon Particle Cannon Energy Gun Medium Laser Energy Cannon Particle Cannon Ballistic Gun Assault Rifle Launcher Mini Grenade Launcher Build | -11 -10 -9 ------- Run | Yrd Mat Mat Slots Evolved 2 | . . 2 Power . | . . . Propulsion 1 | . . 1 Utility 1 | . . 1 Weapon . | . . . Parts Attached 23 | . 8 15 Power 3 | . 1 2 Engine 2 | . . 2 Core 1 | . 1 . Reactor . | . . . Propulsion 7 | . 2 5 Treads . | . . . Leg . | . . . Wheel . | . . . Hover 7 | . 2 5 Flight . | . . . Utility 4 | . 1 3 Device 2 | . 1 1 Storage 1 | . . 1 Processor 1 | . . 1 Hackware . | . . . Protection . | . . . Artifact . | . . . Weapon 9 | . 4 5 Energy Gun . | . . . Energy Cannon 5 | . 3 2 Ballistic Gun 1 | . 1 . Ballistic Cannon . | . . . Launcher 3 | . . 3 Special Weapon . | . . . Impact Weapon . | . . . Slashing Weapon . | . . . Piercing Weapon . | . . . Special Melee Weapon . | . . . Unidentified Prototypes . | . . . Parts Lost 9 | . . 9 Power 2 | . . 2 Propulsion 5 | . . 5 Utility 1 | . . 1 Weapon 1 | . . 1 Highest Loss Streak 9 | . . 9 To Critical Strikes . | . . . Average Backups 6 | . 6 6 Power . | . 1 . Propulsion 2 | . 4 1 Utility . | . . 1 Weapon 2 | . 1 3 Tool/Special . | . . . Unused Backups 16 | . 9 7 Power 2 | . 1 1 Propulsion 8 | . 5 3 Utility 3 | . 1 2 Weapon 3 | . 2 1 Tool/Special . | . . . Average Slot Usage (%) 87 | . 88 86 Engine 5 | . 10 1 Core 6 | . 3 8 Leg 7 | . 20 . Hover 20 | . 6 28 Device 8 | . 6 9 Storage 12 | . 14 11 Processor 4 | . . 7 Energy Gun 1 | . 2 . Energy Cannon 9 | . 9 9 Ballistic Gun 5 | . 13 1 Launcher 5 | . . 8 Peak Build Rating 19 | . 16 19 Average Rating 13 | . 8 15 On Entrance 8 | 6 6 13 Naked Turns . | . . . Heaviest Build 24 | 14 19 24 Greatest Support 21 | 20 20 21 Greatest Overweight (x) 3 | . 2 3 Average Overweight (x) . | . . . Largest Inventory Capacity 10 | . 8 10 Average Capacity 8 | . 8 8 Most Carried 10 | . 8 10 Average Carried 6 | . 6 6 Final Capacity 8 | 8 8 5 Final Carried 8 | 6 8 5 Class Distribution -------------------- 100% | Mutant Dominant Class ---------------- Mutant | -10/Materials Mutant | -9/Materials Resources | -11 -10 -9 ----------- Run | Yrd Mat Mat Matter Collected 396 | 200 58 138 Remotely . | . . . Salvage Created 433 | . 139 294 Parts 35 | . 6 29 Haulers Intercepted 1 | . . 1 Recyclers Shooed . | . . . Parts Field Recycled . | . . . Retrieved Matter . | . . . Parts Self-Destructed . | . . . Prevented . | . . . Kills | -11 -10 -9 ------- Run | Yrd Mat Mat Combat Hostiles Destroyed 22 | . 3 19 Guns 1 | . 1 . Cannons 6 | . 2 4 AOE 15 | . . 15 Classes Destroyed 4 | . 1 3 Hauler 1 | . . 1 Swarmer 14 | . . 14 Grunt 5 | . 3 2 Sentry 3 | . . 3 Best Kill Streak 8 | . 2 8 Combat Bots Only 8 | . 2 8 Max Kills in Single Turn 4 | . 1 4 Gunslinging . | . . . Exploded 4 | . . 4 Melee . | . . . Uniques/NPCs Destroyed . | . . . Combat | -11 -10 -9 -------- Run | Yrd Mat Mat Hostile Shots Fired 173 | . 29 144 Missed 59 | . 9 50 Hits 114 | . 20 94 Projectile 114 | . 20 94 Critical Strikes 4 | . . 4 Damage Taken 1365 | . 225 1140 Core 459 | . 54 405 Absorbed by Shields . | . . . Core Remaining (%) 89 | 100 78 . Volleys Fired 30 | . 19 11 Largest 2 | . 2 2 Hottest 136 | . 80 136 Shots Fired 56 | . 38 18 Gun 22 | . 22 . Cannon 29 | . 16 13 Launcher 5 | . . 5 Special . | . . . Kinetic 19 | . 19 . Thermal 32 | . 19 13 Explosive 5 | . . 5 Electromagnetic . | . . . Robot Hit Streak 7 | . 7 5 Robot Miss Streak 3 | . 3 2 Penetration Max . | . . . Secondary Targets . | . . . Shots Hit Robots 34 | . 23 11 Core Hits 24 | . 5 19 Critical Kills . | . . . Critical Parts Destroyed . | . . . Critical Strikes . | . . . Melee Attacks . | . . . Impact . | . . . Slashing . | . . . Piercing . | . . . Sneak Attacks . | . . . Combat Hostiles . | . . . Follow-up Attacks . | . . . Damage Inflicted 2045 | . 340 1705 Guns 184 | . 184 . Cannons 319 | . 156 163 Explosions 1533 | . . 1533 Melee . | . . . Ramming 9 | . . 9 Kinetic 158 | . 158 . Thermal 1132 | . 182 950 Explosive 746 | . . 746 Electromagnetic . | . . . Impact . | . . . Slashing . | . . . Piercing . | . . . Highest Corruption . | . . . Average Corruption . | . . . Corruption Purged . | . . . Corruption Blocked . | . . . Overload Shots . | . . . Overflow Damage 183 | . 4 179 Projectiles 4 | . 4 . Explosions 179 | . . 179 Melee . | . . . Knockbacks . | . . . Impact . | . . . Kinetic . | . . . Secondary . | . . . Self-Inflicted Damage 5 | . . 5 Shots 1 | . . 1 Rammed 3 | . . 3 Targets Rammed 3 | . . 3 Kicked . | . . . Crushed . | . . . Highest Temperature 249 | . 219 249 Average Temperature 79 | . 75 85 Received Heat Transfer 447 | . 126 321 Siege Activations . | . . . Martial Activations . | . . . Shielding Activations . | . . . Robots Disrupted . | . . . Combat Hostiles . | . . . Robots Corrupted . | . . . Combat Hostiles . | . . . Parts Fried . | . . . Impact Corruptions . | . . . Robots Melted . | . . . Combat Hostiles . | . . . Parts Melted 2 | . . 2 Heat Transferred 1203 | . 407 796 Parts Sabotaged . | . . . Parts Stolen . | . . . Parts Stripped . | . . . Power Chain Reactions . | . . . Alert | -11 -10 -9 ------- Run | Yrd Mat Mat Maximum Alert Level 2 | . . 2 Low Security (%) 75 | . 100 60 Level 1 9 | . . 15 Level 2 15 | . . 24 Level 3 . | . . . Level 4 . | . . . Level 5 . | . . . High Security . | . . . Max Security . | . . . Peak Influence 574 | . 75 574 Initial . | . . . Average 150 | . 25 226 Influence Increases 902 | . 95 807 Destroy 0b10 Robot/C 440 | . 60 380 Destroy 0b10 Robot/NC 5 | . . 5 Destroy Leader 92 | . 20 72 Successful Hack 3 | . . 3 Disable Machine 135 | . 15 120 Destroy Structure 107 | . . 107 Partial Spotted 30 | . . 30 Lose Combat Pursuer 90 | . . 90 Influence Decreases 403 | . 95 308 Time Decay 313 | . 95 218 Lost Part 90 | . . 90 Squads Dispatched 2 | . 1 1 Investigation . | . . . Extermination . | . . . Reinforcement 2 | . 1 1 Assault . | . . . Garrison . | . . . Intercept . | . . . Searches Triggered . | . . . Construction Impeded 1 | . . 1 Haulers Reinforced . | . . . Active Scanning Responses . | . . . Cargo Convoy Interrupts . | . . . Stealth | -11 -10 -9 --------- Run | Yrd Mat Mat Distress Signals 1 | . . 1 Communications Jammed . | . . . Distress Signals . | . . . Times Spotted 39 | . 9 30 Peak Tracking Total 11 | . 3 11 Tactical Retreats 3 | . . 3 Traps | -11 -10 -9 ------- Run | Yrd Mat Mat Traps Triggered 3 | . . 3 Indirectly . | . . . Trap Hack Attempts . | . . . Triggered . | . . . Disarmed . | . . . Reprogrammed . | . . . Reused . | . . . Traps Extracted . | . . . Installed . | . . . Triggered . | . . . Machines | -11 -10 -9 ---------- Run | Yrd Mat Mat Machines Disabled 9 | . 1 8 Max in Single Turn 6 | . 1 6 Machines Repaired . | . . . Machines Dismantled . | . . . Machines Sabotaged . | . . . Overloaded Fab Kills . | . . . Hacking | -11 -10 -9 --------- Run | Yrd Mat Mat Machines Accessed 4 | . 1 3 Terminals 1 | . . 1 Fabricators . | . . . Repair Stations 1 | . . 1 Recycling Units 1 | . 1 . Scanalyzers 1 | . . 1 Garrison Access . | . . . Total Hacks 14 | . 1 13 Successful 12 | . 1 11 Failed 2 | . . 2 Catastrophic . | . . . Database Lockouts . | . . . Manual . | . . . Terminals 5 | . . 5 Fabricators . | . . . Repair Stations 2 | . . 2 Recycling Units 1 | . 1 . Scanalyzers 6 | . . 6 Garrison Access . | . . . Terminal Hacks 3 | . . 3 Emergency Access Points 1 | . . 1 Hauler Manifests 1 | . . 1 Zone Layout 1 | . . 1 Fabricator Hacks . | . . . Repair Station Hacks 2 | . . 2 Scan Component 1 | . . 1 Repair 1 | . . 1 Recycling Unit Hacks 1 | . 1 . Report Inventory 1 | . 1 . Scanalyzer 6 | . . 6 Insert Component 2 | . . 2 Analyze 4 | . . 4 Garrison Access Hacks . | . . . Unauthorized Hacks . | . . . Terminals . | . . . Fabricators . | . . . Repair Stations . | . . . Recycling Units . | . . . Scanalyzers . | . . . Garrison Access . | . . . Data Cores Recovered . | . . . Used . | . . . Hacking Detections 3 | . . 3 Full Trace Events 1 | . . 1 Feedback Events . | . . . Feedback Blocked . | . . . Robot Schematics Acquired . | . . . Robots Built . | . . . Authchips . | . . . Time . | . . . Total Robot Build Rating . | . . . Part Schematics Acquired 2 | . . 2 Parts Built . | . . . Authchips . | . . . Time . | . . . Total Part Build Rating . | . . . Parts Repaired . | . . . Time 38 | . . 38 Parts Recycled . | . . . Recycled Matter . | . . . Retrieved Matter . | . . . Retrieved Components . | . . . Parts Scanalyzed 2 | . . 2 Part Schematics Acquired 2 | . . 2 Parts Damaged . | . . . Bothacking | -11 -10 -9 ------------ Run | Yrd Mat Mat Used RIF Installer . | . . . Robots Hacked . | . . . Non-combat . | . . . Combat . | . . . Robot Hacks Applied . | . . . Relay Couplers Released . | . . . Fabnet Peak Effective % . | . . . Robots Rewired . | . . . Allies Hacked . | . . . Hacks Repelled . | . . . Allies | -11 -10 -9 -------- Run | Yrd Mat Mat Total Allies . | . . . Largest Group . | . . . Highest-Rated Group . | . . . Highest-Rated Ally . | . . . Total Orders . | . . . Ally Attacks . | . . . Total Damage . | . . . Kills . | . . . Allies Corrupted . | . . . Allies Melted . | . . . Intel | -11 -10 -9 ------- Run | Yrd Mat Mat Active Infowar (turns) 281 | . . 281 Seismic 281 | . . 281 Robot Analysis Total . | . . . Derelict Logs Recovered . | . . . Drone Launches . | . . . Drone Recoveries . | . . . Exploration | -11 -10 -9 ------------- Run | Yrd Mat Mat Turns Passed 808 | . 307 501 Spaces Moved 859 | 1 231 627 Core 10 | . . 10 Treads . | . . . Legs 122 | 1 121 . Wheels . | . . . Hover 727 | . 110 617 Flight . | . . . Fastest Speed 50 | 120 56 50 Average Speed 71 | 120 91 63 Slowest Speed 200 | 120 180 200 Overloaded Moves . | . . . Propulsion Burnouts . | . . . Robots Hopped . | . . . Potential Cave-ins . | . . . Cave-ins Triggered . | . . . Exploration Rate (%) 36 | 2 43 64 Regions Visited 2 Branch Regions . Pre-discovered Areas . | . . . Known Exits Taken . | . . . Unknown Exits Taken 2 | 1 1 . Scrap Searched . | . . . Spaces Dug . | . . . Terrain Destroyed 135 | . . 135 Melee . | . . . Projectile . | . . . AOE 135 | . . 135 Terrain Rammed . | . . . Walls Destroyed . | . . . Machines Disabled . | . . . Actions | -11 -10 -9 --------- Run | Yrd Mat Mat Total 1008 | . 293 715 Wait 44 | . 9 35 Move 857 | . 230 627 Hop . | . . . Pick Up 19 | . 10 9 Fast Attach 11 | . 6 5 Attach 11 | . 1 10 Detach 7 | . 3 4 Swap 3 | . 1 2 Drop 23 | . 14 9 Fire 30 | . 19 11 Melee . | . . . Ram 3 | . . 3 Kick . | . . . Crush . | . . . Escape Stasis . | . . . Rewire . | . . . Trap . | . . . Miscellaneous . | . . . Route ------- -11/Scrapyard -10/Materials (discovered 2 exits: *Mat / [*Min]) -9/Materials (discovered 2 exits: [*Mat] / [*Sto]) History --------- Turn | Location | Event 1 | -11/Scrapyard | Discovered new exit (range 0) 1 | -11/Scrapyard | Entered Materials 174 | -10/Materials | Discovered new exit (range 14) 260 | -10/Materials | Discovered new exit (range 5) 308 | -10/Materials | Entered another Materials area 308 | -9/Materials | Evolved 2 slots: Propulsion x1, Utility x1 327 | -9/Materials | Discovered new exit (range 6) 330 | -9/Materials | Build established: Mutant 635 | -9/Materials | Destroyed 8 combat bots 721 | -9/Materials | Core integrity fell below 50% 757 | -9/Materials | Lost 9 parts (2p5n1u1w) 790 | -9/Materials | Discovered new exit (range 15) 801 | -9/Materials | Core integrity fell below 20% 809 | -9/Materials | Destroyed by Y-45 Defender with Beam Rifle Last Messages --------------- 00718_ S-10 Pest destroyed. 00722_ Acquired 17 matter. 00723_ Imp. Hover Unit destroyed. 00723_ Imp. Ion Engine destroyed. 00726_ Imp. Hover Unit destroyed. 00745_ K-01 Serf collects debris. 00756_ Acquired Imp. Ion Engine. 00790_ EXIT=FOUND 00800_ Critical hit (Burn: +37). 00804_ Triggered Blade Trap. 00804_ Massive razor-sharp blades shoot up from within the floor. 00804_ Imp. Hover Unit severed. 00804_ U-05 Engineer lays Concrete. 00806_ Dropped Med. Storage Unit. 00806_ U-05 Engineer lays Concrete. 00807_ Triggered Blade Trap. 00807_ Massive razor-sharp blades shoot up from within the floor. 00807_ Imp. Ion Engine severed. 00807_ Mni. Grenade Launcher severed. 00808_ U-05 Engineer lays Concrete. Map ----- +----------------------------------------------------+ | | | | | | | | | | | | | | | | | | | | | | | | | | | | | | | | | ????????????????????????#########??????????? | | ????????????????????#? #??????????? | | ????????????????????# #??????????? | | ????????????????????# #??????????? | | ????????????????????# """ #??????????? | | ????????????????????# """ "T" #????????### | | ?????????????????????? """ """?????????? !# | | ???????????????????????? ?????####### ! | | ?????????????####+########;######## ! | | ?????????????# @*]= Y ! | | ?????????????# < ]^! Y T ! | | ?????????# ; Y !# | | ?????? ;;;;#######+########## #### | | ????? ????????########## ##??? | | ?????? ????????# # #?### | | ????? u u ????????# # # | | ??? [ ????????# # + | | ??% [[ ????????# """ # # """ | | ? [ ????????#""""" / #?""" | | ? ???????#""""" # #??"" | | ????????#""""" # #???? | | ????????# """ # #?### | | "" """""????????# # # | | ? """#####????#######/## + | | ??# =!= "" """ #??????????# #???? | | ????# %= ## """ #??????????# #???? | | ##### + ## """ #??????????# #???? | | # *%## + #??????????# #???? | | # """ =## ## #??????????# #???? | | # """ ## ## #??????????# #???? | | # """ # # #??#######?# #???? | | # """ # # ### #?# ##### | | # # " % !### | | # + "T ^ * [ = | +----------------------------------------------------+ Best States ------------- Heat Dissipation 42 Energy Generation 14 Energy Capacity 265 Matter Stores 300 Matter Capacity 300 Sight Range 16 Terrain Scan Density 10 Evasion (%) 55 Targeting Accuracy 6 Item Schematics ----------------- Imp. Hover Unit | -9/Materials | Scanalyzed Particle Cannon | -9/Materials | Scanalyzed Robot Schematics ------------------ None Fabricated ------------ Nothing Repaired ---------- Nothing Alien Tech Used ----------------- None Achievements -------------- None Challenges ------------ None Game ------ Seed ThermicHellfireMediator Manual? 0 Play Time 00:18:30 Cumulative 10.1 hours Start 2025.07.23 @ 19:12:57 End 2025.07.23 @ 19:29:47 Sessions 1 Manual Loads 0 Difficulty Rogue Special Mode None Game No. 15 Rogue 15 Adventurer 0 Explorer 0 Win Type - Total 0 Types 0/0/0/0/0/0/0/0/0/0 Lore% 5 Gallery% 15 Achievement% 18 Wizard Run 0 Options --------- Layout 0 ASCII 0 Keyboard 0 Movement Mouse Keybinds 0 Fullscreen 1 Font 24/Terminus Map View 76x50 Zoom Use 12% Tactical HUD 1 Map Filters NONE Filters NONE Steam 1 RUN: 43b0ca74-8aab-49d2-8d54-99d1cbfd3afe